[Event "12th WLC Weekend 2022"]
[Site "Eindhoven"]
[Date "2022.05.15"]
[Round "6.8"]
[White "Ciornei, Dragos"]
[Black "Becx, Cesar"]
[Result "0-1"]
[ECO "C45"]
[WhiteElo "2164"]
[BlackElo "2101"]
[Annotator "TA"]
[PlyCount "150"]
[EventDate "2022.05.13"]
[EventType "swiss"]
[EventCountry "NED"]
[SourceTitle "playchess.com"]
[Source "ChessBase"]
[SourceQuality "1"]
[TimeControl "5400+30"]

{[%evp 16,150,0,-8,12,-26,0,-36,-21,-43,-17,-26,-17,-28,-10,-85,-28,-32,-47,-47,-61,-85,-32,-171,-169,-148,10,10,11,0,0,0,0,-77,-106,-95,-110,-82,-87,-102,-89,-99,-18,-36,-17,-19,-22,-76,-83,-306,-139,-145,-143,-146,-141,-135,-75,-95,-90,-96,-91,-98,-96,-259,-70,-113,-79,-79,0,-146,-146,-197,-178,-401,-8,-8,0,-456,-456,-1075,-910,-1327,-1277,-12850,-29945,-29943,-29945,-10791,-8,-8,-8,-8,-8,-8,-8,-8,-8,-8,-8,-8,-8,-29958,-29960,-29961,-29964,-29963,-29965,-29965,-29966,-29966,-29967,-29966,-29967,-29971,-29972,-29973,-29974,-29974,-29973,-29974,-29973,-29973,-29974,-29975,-29975,-29975,-29976,-29976,-29975,-29975,-29976,-29976,-29977,-29982,-29983,-29983,-29984]} 1. e4 {[%emt 0:00:06]} e5 {[%emt 0:00:03]} 2. Nf3 {[%emt 0:00:47]} Nc6 {[%emt 0:00:03]} 3. d4 {[%emt 0:00:47]} exd4 {[%emt 0:00:04]} 4. Nxd4 {[%emt 0:00:31]} Nf6 {[%emt 0:00:10]} 5. Nxc6 {[%emt 0:00:49]} bxc6 {[%emt 0:00:07]} 6. e5 {[%emt 0:00:34]} Qe7 {[%emt 0:00:05]} 7. Qe2 {[%emt 0:00:26]} Nd5 {[%emt 0:00:03]} 8. c4 {[%emt 0:03:04]} Nb6 {[%emt 0:00:02]} 9. Nc3 {[%emt 0:00:43]} Qe6 {[%emt 0:00:06] C45: Scotch Game.} 10. b3 {[%emt 0:04:27]} a5 {[%emt 0:00:35]} 11. a4 {[%emt 0:02:50]} Bb4 {[%emt 0:18:11] Black is slightly better.} 12. Bb2 {[%emt 0:03:02]} d5 {[%emt 0:23:03]} 13. exd6 $1 {[%emt 0:05:02]} cxd6 {[%emt 0:03:39] White should prevent ...d5.} 14. O-O-O $1 {[%emt 0:03:57]} O-O $36 {[%emt 0:02:13][%mdl 2048] Black is more active.} 15. Qxe6 {[%emt 0:11:47] [#]} (15. Qh5 $11) 15... fxe6 $146 {[%emt 0:13:55]} (15... Bxe6 $17 16. Bd3 Rfd8) ({Predecessor:} 15... Bxe6 16. Bd3 Nd7 17. Bc2 Nc5 18. Ne2 d5 19. Rd4 Rfe8 20. Nf4 Na6 21. Nxe6 fxe6 {0-1 (57) Kilic,E (1843)-Yargici,M (1970) Kocaeli 2013}) 16. f3 {[%emt 0:02:33]} d5 {[%emt 0:00:06]} 17. cxd5 {[%emt 0:01:50]} exd5 {[%emt 0:00:56]} 18. Bd3 {[%emt 0:05:23]} Nd7 {[%emt 0:02:08]} (18... Be6 $17 {...d4 is the strong threat.} 19. Bc2 Nd7) 19. Kb1 {[%emt 0:11:06]} ({White should try} 19. Bc2 $15) 19... Nc5 $19 {[%emt 0:06:44]} 20. Bc2 {[%emt 0:02:50]} Rb8 $2 {[%emt 0:13:16]} (20... Bf5 $1 $17 {aiming for ...Nxb3.} 21. Na2 Nxb3 22. Nxb4 axb4) 21. Na2 $11 {[%emt 0:13:30] Hoping for Be5.} Bf5 {[%emt 0:09:16]} 22. Nxb4 {[%emt 0:02:56]} Rxb4 {[%emt 0:00:45]} 23. Bxf5 {[%emt 0:01:07]} Rxf5 {[%emt 0:00:46]} 24. Ba3 {[%emt 0:02:06]} (24. Ka2 $11) 24... Rxb3+ $17 {[%emt 0:00:13]} 25. Ka2 {[%emt 0:00:15]} Rc3 {[%emt 0:00:05] Black is more active.} 26. Bxc5 {[%emt 0:04:47]} Rxc5 {[%emt 0:00:05][%mdl 4096] Endgame KRR-KRR} 27. Rc1 {[%emt 0:00:22] Prevents Rc2+.} d4 {[%emt 0:01:21]} 28. Kb3 {[%emt 0:01:40]} d3 {[%emt 0:01:10]} (28... Rfe5 $17 {And now ...Re3+ would win.} 29. Rhd1 Re3+ 30. Kb2 Rg5) 29. Rhd1 $11 {[%emt 0:04:00]} Rxc1 {[%emt 0:02:49]} 30. Rxc1 $15 {[%emt 0:00:11] KR-KR} Rd5 {[%emt 0:00:42]} 31. Rd1 {[%emt 0:00:57]} (31. Kc4 $1 $11) 31... Rd4 $1 $17 {[%emt 0:00:14]} 32. Rd2 $2 {[%emt 0:04:06]} (32. Rc1 $17) 32... Kf7 {[%emt 0:00:39]} (32... c5 $1 $19 {and Black stays clearly on top. White must now prevent ...Rb4+.} 33. Kc3 Rxa4) 33. Kc3 {[%emt 0:00:19]} Rxa4 {[%emt 0:00:10]} 34. Kxd3 {[%emt 0:00:26]} Ke6 $1 {[%emt 0:00:13]} 35. Kc3 {[%emt 0:00:51]} Ra1 {[%emt 0:01:06]} ({Black should play} 35... g6 36. Rb2 h5) 36. Kc4 {[%emt 0:01:53]} Rc1+ {[%emt 0:00:09]} 37. Kb3 {[%emt 0:00:40]} Rc5 {[%emt 0:00:15]} 38. Ka4 {[%emt 0:00:39]} h5 {[%emt 0:00:22]} 39. h4 $2 {[%emt 0:02:11]} (39. Re2+ $17 {was worth a try.} Kd7 40. g3) 39... Kf5 $2 {[%emt 0:00:59]} (39... Rc4+ $1 $19 40. Kxa5 Rxh4) 40. Rd4 {[%emt 0:00:42]} Ke5 {[%emt 0:01:21]} 41. Re4+ {[%emt 0:00:38]} Kf5 {[%emt 0:01:37]} (41... Kd6 $142) 42. Rd4 $1 {[%emt 0:00:42]} g6 $1 {[%emt 0:00:14]} 43. Re4 {[%emt 0:03:34]} (43. g4+ $17 Ke5 44. Re4+ Kf6 45. Rd4) 43... Rb5 $1 $19 {[%emt 0:00:55][%cal Ob5b4] Strongly threatening ...Rb4+!} 44. Re8 $2 {[%emt 0:00:43]} (44. g3) 44... Kf4 $2 {[%emt 0:00:37]} ({Better is} 44... Rb4+ $19 45. Kxa5 Rxh4) 45. Re6 {[%emt 0:00:23]} Kf5 {[%emt 0:00:51]} 46. Rxc6 {[%emt 0:00:15][%mdl 8192]} (46. Re8 $1 $11) 46... Rb4+ $1 {[%emt 0:00:06]} 47. Kxa5 {[%emt 0:00:21]} (47. Ka3 $142 Rxh4 48. Kb3) 47... Rxh4 {[%emt 0:00:05]} 48. Kb5 {[%emt 0:00:53]} Rh2 {[%emt 0:00:18]} 49. g4+ {[%emt 0:00:44]} hxg4 {[%emt 0:00:11]} 50. fxg4+ {[%emt 0:00:04]} Kg5 {[%emt 0:00:06]} 51. Kb4 {[%emt 0:00:32]} Rd2 $2 {[%emt 0:01:42]} (51... Rf2 $19 52. Kc3 Rf6) 52. Kc3 $11 {[%emt 0:00:16]} Rd1 {[%emt 0:00:12]} 53. Kc2 {[%emt 0:00:09] Prevents Rc1+.} Rd4 {[%emt 0:00:10]} 54. Kc3 {[%emt 0:00:21]} Rxg4 {[%emt 0:01:25]} 55. Kd3 {[%emt 0:00:15]} Kf4 {[%emt 0:00:23]} 56. Ke2 {[%emt 0:00:39]} Kg3 {[%emt 0:00:13]} 57. Kf1 {[%emt 0:01:39]} Kh2 {[%emt 0:00:29] ( -> ...Rf4+)} 58. Rc2+ $2 {[%emt 0:00:30][%mdl 8192] White is now going downhill.} (58. Kf2 $11) 58... Kh1 {[%emt 0:00:13] Black mates.} 59. Rc6 {[%emt 0:00:35] [#]} Rf4+ $1 {[%emt 0:00:28]} 60. Ke2 {[%emt 0:00:07]} g5 {[%emt 0:00:33][%cal Bg6g5,Bg5g4,Bg4g3][%mdl 32]} 61. Rg6 {[%emt 0:00:33]} Rf5 {[%emt 0:00:17]} 62. Ke3 {[%emt 0:00:40] [#]} Kg2 $1 {[%emt 0:00:09]} 63. Ke4 {[%emt 0:00:19]} Ra5 {[%emt 0:00:59]} 64. Rb6 {[%emt 0:00:51]} g4 {[%emt 0:00:39]} 65. Kf4 {[%emt 0:00:17]} Ra4+ {[%emt 0:00:38]} 66. Ke3 {[%emt 0:00:20]} Ra2 {[%emt 0:00:31]} 67. Rb7 {[%emt 0:00:35]} Rc2 {[%emt 0:00:32]} 68. Ra7 {[%emt 0:00:28]} g3 {[%emt 0:00:11]} 69. Rg7 {[%emt 0:00:18]} Rc3+ {[%emt 0:00:32]} 70. Kd2 {[%emt 0:00:32]} Ra3 {[%emt 0:00:17]} 71. Ke2 {[%emt 0:00:15]} Ra6 {[%emt 0:00:18]} 72. Ke3 {[%emt 0:00:36]} Ra8 {[%emt 0:00:09]} 73. Rg6 {[%emt 0:00:20]} Re8+ {[%emt 0:00:08]} 74. Kf4 {[%emt 0:00:34]} Kf2 {[%emt 0:00:08]} 75. Rxg3 {[%emt 0:01:19]} Rf8+ {[%emt 0:00:05] Weighted Error Value: White=0.78/Black=0.48} 0-1

[Event "12th WLC Weekend 2022"]
[Site "Eindhoven"]
[Date "2022.05.15"]
[Round "6.9"]
[White "Boeren, Jurriaan"]
[Black "Albers, Sasa"]
[Result "0-1"]
[ECO "C02"]
[WhiteElo "1778"]
[BlackElo "2117"]
[Annotator "TA"]
[PlyCount "50"]
[EventDate "2022.05.13"]
[EventType "swiss"]
[EventCountry "NED"]
[SourceTitle "playchess.com"]
[Source "ChessBase"]
[SourceQuality "1"]
[TimeControl "5400+30"]

{[%evp 9,50,42,54,51,57,47,72,56,62,61,56,45,47,35,70,-33,6,-12,-16,-75,-28,-48,-47,-80,-42,-351,-360,-383,-381,-365,-348,-450,-338,-802,-822,-877,-873,-5985,-2595,-29989,-29990,-29995,-29995]} 1. e4 {[%emt 0:00:01]} Nc6 {[%emt 0:00:39]} 2. Nf3 {[%emt 0:00:29]} e6 {[%emt 0:00:57]} 3. d4 {[%emt 0:00:16]} d5 {[%emt 0:00:22]} 4. e5 {[%emt 0:02:20]} Nge7 {[%emt 0:01:00]} 5. c3 {[%emt 0:05:16]} f6 {[%emt 0:06:13]} 6. Bd3 {[%emt 0:06:08] C02: French: Advance Variation.} fxe5 {[%emt 0:15:15]} 7. dxe5 {[%emt 0:00:59] [#]} Qd7 $146 {[%emt 0:00:43]} ({Predecessor:} 7... g6 8. h4 Bg7 9. Qe2 h6 10. Bf4 b6 11. Rh3 Bb7 12. Qc2 Kd7 13. Bxg6 Qf8 {0-1 (56) Dimitrov,P (2468)-Drenchev,P (2439) Plovdiv 2007}) 8. O-O {[%emt 0:08:48] White is better.} g6 {[%emt 0:04:09]} 9. Re1 {[%emt 0:05:47]} Bg7 {[%emt 0:00:38]} 10. Bg5 {[%emt 0:05:01]} Nf5 {[%emt 0:04:38]} 11. Qd2 {[%emt 0:11:38]} Qf7 {[%emt 0:03:30]} 12. h4 {[%emt 0:05:39]} (12. Na3 $14) 12... Bd7 {[%emt 0:02:32]} (12... h6 $5 {[%cal Rh6g5]} 13. Bf6 Bxf6 14. exf6 Bd7 $11) 13. b4 {[%emt 0:03:31]} h6 {[%emt 0:05:36]} 14. Bf4 {[%emt 0:01:58]} (14. Bxf5 $11 {remains equal.} gxf5 15. Bf4) 14... O-O-O {[%emt 0:02:26]} (14... Nce7 $17) 15. a4 {[%emt 0:03:15]} Nce7 {[%emt 0:05:00][%cal Og6g5]} 16. Bh2 {[%emt 0:07:32] [#]} g5 $1 {[%emt 0:04:45]} 17. hxg5 $2 {[%emt 0:03:53][%mdl 8192] Loses the game.} ({White should try} 17. h5 $15) 17... hxg5 $19 {[%emt 0:05:13] Strongly threatening ...g4.} 18. Nxg5 {[%emt 0:00:53]} Qh5 {[%emt 0:01:11]} 19. Nh3 {[%emt 0:01:11]} Rdg8 {[%emt 0:00:59][%cal Bd8g8,Bg8g2,Bg2h2][%mdl 32]} 20. Qe2 {[%emt 0:05:07]} Qh4 {[%emt 0:06:07]} 21. Nd2 $2 {[%emt 0:02:23]} (21. Kh1 Bh6 22. Rg1) 21... Bh6 {[%emt 0:00:48]} 22. Kh1 {[%emt 0:11:25]} Bxd2 {[%emt 0:01:18]} 23. Qxd2 {[%emt 0:00:12] [#]} Rxg2 $3 {[%emt 0:00:42][%mdl 512]} 24. Bxf5 {[%emt 0:00:34] [#]} (24. Re3 d4) 24... Nxf5 $1 {[%emt 0:00:58]} 25. Qd3 {[%emt 0:01:07]} (25. Re3 d4) 25... Rxh2+ {[%emt 0:01:12] Weighted Error Value: White=1.20/Black=0.13 (very precise)} 0-1

[Event "12th WLC Weekend 2022"]
[Site "Eindhoven"]
[Date "2022.05.15"]
[Round "6.10"]
[White "Straat, Evert-Jan"]
[Black "Roebers, Jan"]
[Result "1/2-1/2"]
[ECO "E71"]
[WhiteElo "2034"]
[BlackElo "2126"]
[Annotator "TA"]
[PlyCount "54"]
[EventDate "2022.05.13"]
[EventType "swiss"]
[EventCountry "NED"]
[SourceTitle "playchess.com"]
[Source "ChessBase"]
[SourceQuality "1"]
[TimeControl "5400+30"]

{[%evp 16,54,47,45,50,45,58,66,79,50,38,26,20,0,51,21,33,-14,42,25,94,4,55,5,0,-6,16,0,35,-101,16,25,31,56,21,0,18,15,45,18,48]} 1. d4 {[%emt 0:00:03]} Nf6 {[%emt 0:00:23]} 2. c4 {[%emt 0:00:11]} g6 {[%emt 0:00:00]} 3. Nc3 {[%emt 0:00:13]} Bg7 {[%emt 0:00:04]} 4. e4 {[%emt 0:00:14]} d6 {[%emt 0:00:08]} 5. h3 {[%emt 0:00:16]} O-O {[%emt 0:00:51]} 6. Bg5 {[%emt 0:00:37]} h6 {[%emt 0:01:46]} 7. Be3 {[%emt 0:00:25]} e5 {[%emt 0:02:09]} 8. d5 {[%emt 0:00:18]} a5 {[%emt 0:01:15] is the legacy move (8...Na6).} 9. Bd3 {[%emt 0:02:49]} Na6 {[%emt 0:01:45] E71: King's Indian: 4 e4 d6 5 h3.} 10. Nge2 {[%emt 0:03:00]} Nc5 {[%emt 0:02:00]} 11. Bc2 {[%emt 0:00:08]} Bd7 {[%emt 0:03:28] White is slightly better.} 12. g4 {[%emt 0:05:33]} Nh7 {[%emt 0:14:06]} 13. Ng3 {[%emt 0:12:25]} Qh4 {[%emt 0:02:47]} 14. Qf3 {[%emt 0:21:20] [#]} Bf6 $146 {[%emt 0:05:28]} (14... Rfb8 $11) ({Predecessor:} 14... Rab8 15. O-O-O b5 16. cxb5 Bxb5 17. Bxc5 dxc5 18. Qe3 Qe7 19. h4 Bd7 20. f3 c4 {½-½ (55) Bauer,R (2232)-Garcia,M (2055) Windsor Locks 2003}) 15. O-O-O {[%emt 0:09:46]} Bg5 {[%emt 0:01:50]} 16. Rdg1 {[%emt 0:06:18]} (16. Nf1 $14 {should be considered.}) 16... Kh8 {[%emt 0:03:43]} ({Better is} 16... a4 $11) 17. Kb1 {[%emt 0:05:11]} a4 {[%emt 0:00:58]} (17... Bxe3 $11 {keeps the balance.} 18. Qxe3 Rab8) 18. Qe2 {[%emt 0:08:04]} ({White should try} 18. Bxc5 $16 dxc5 19. a3) 18... b6 {[%emt 0:03:46]} (18... Bxe3 $11 19. Qxe3 Qg5) 19. f3 {[%emt 0:09:34]} (19. Nf1 $14) 19... Bxe3 $11 {[%emt 0:00:49]} 20. Qxe3 {[%emt 0:00:02]} Rab8 {[%emt 0:12:36]} (20... b5 $5) 21. Qe2 {[%emt 0:04:56]} Rb7 {[%emt 0:03:39][%cal Ob6b5]} 22. Kc1 {[%emt 0:03:30] [#]} (22. Nb5 $14) 22... Rfb8 {[%emt 0:02:51]} ({Black should play} 22... b5 $1 $17 23. cxb5 Rfb8) 23. Nb5 $1 {[%emt 0:03:41]} Bxb5 {[%emt 0:01:46]} 24. cxb5 {[%emt 0:00:02]} Ra7 {[%emt 0:01:57]} 25. Bd3 {[%emt 0:00:58]} Kg7 {[%emt 0:01:35]} (25... a3 $5 {[%cal Ra3b2]} 26. b3 Kg7 $11) 26. Bc4 {[%emt 0:02:15]} Re8 {[%emt 0:01:55]} 27. Kb1 {[%emt 0:00:00]} Kf8 {[%emt 0:02:28] Weighted Error Value: White=0.30/Black=0.34} 1/2-1/2

[Event "12th WLC Weekend 2022"]
[Site "Eindhoven"]
[Date "2022.05.15"]
[Round "6.11"]
[White "Van Doren, Bas"]
[Black "Cebula, Jerzy"]
[Result "1/2-1/2"]
[ECO "C45"]
[WhiteElo "2102"]
[BlackElo "1994"]
[Annotator "TA"]
[PlyCount "90"]
[EventDate "2022.05.13"]
[EventType "swiss"]
[EventCountry "NED"]
[SourceTitle "playchess.com"]
[Source "ChessBase"]
[SourceQuality "1"]
[TimeControl "5400+30"]

{[%evp 17,90,0,0,-14,0,-139,-138,-141,-134,-137,-144,-150,-150,-160,-131,-126,-116,-114,-112,-117,-102,-113,-78,-134,-142,-140,-98,-113,-98,-98,-96,-92,-35,-38,-31,-108,-2,-114,-116,-116,-110,-115,-111,-118,-119,-106,-50,-122,-122,-122,-122,-127,-121,-124,-124,-119,-121,-113,-97,-87,-83,-104,-113,-96,-101,-109,-52,-62,0,-6,-6,-10,0,-18,0]} 1. e4 {[%emt 0:00:03]} e5 {[%emt 0:01:53]} 2. Nf3 {[%emt 0:00:07]} Nc6 {[%emt 0:00:12]} 3. d4 {[%emt 0:00:07]} exd4 {[%emt 0:00:16]} 4. Nxd4 {[%emt 0:00:06]} Nf6 {[%emt 0:00:11]} 5. Nxc6 {[%emt 0:00:10]} bxc6 {[%emt 0:00:04]} 6. e5 {[%emt 0:00:06]} Qe7 {[%emt 0:00:05]} 7. Qe2 {[%emt 0:00:06]} Nd5 {[%emt 0:00:05]} 8. c4 {[%emt 0:00:06]} Ba6 {[%emt 0:00:15]} 9. Nd2 {[%emt 0:00:27]} g6 {[%emt 0:07:04]} 10. Nf3 {[%emt 0:00:12] C45: Scotch Game.} Qb4+ {[%emt 0:02:02]} 11. Qd2 {[%emt 0:07:15]} (11. Kd1 $11 {remains equal.}) 11... Bxc4 $17 {[%emt 0:01:14]} 12. Qxb4 {[%emt 0:08:17] Black is clearly better.} Bxb4+ {[%emt 0:00:14]} 13. Bd2 {[%emt 0:01:36]} Bxf1 {[%emt 0:00:43]} 14. Rxf1 {[%emt 0:00:23]} Bxd2+ {[%emt 0:01:02]} 15. Kxd2 {[%emt 0:00:09] [#]} O-O $146 {[%emt 0:02:04]} ({Predecessor:} 15... Rb8 16. b3 O-O 17. Rac1 Rfe8 18. Rfe1 Rb6 19. Nd4 Ra6 20. a4 Rb6 21. g3 g5 {0-1 (35) Philipp,M (1791)-Raetzke von Stoyentin,S (1979) Lingen 2015}) 16. Rad1 {[%emt 0:01:44]} Rab8 {[%emt 0:08:33]} 17. Kc1 {[%emt 0:02:17]} Rfe8 {[%emt 0:00:12]} 18. Rfe1 {[%emt 0:05:41]} Kg7 {[%emt 0:00:27]} 19. g3 {[%emt 0:00:34]} Re7 {[%emt 0:09:02]} 20. Rd3 {[%emt 0:01:41]} (20. Nd4 $142) 20... Nb4 {[%emt 0:04:53]} 21. Ra3 {[%emt 0:01:06]} c5 {[%emt 0:01:47][%cal Bc6c5,Bc5c4][%mdl 32]} 22. Ree3 {[%emt 0:01:18]} c4 {[%emt 0:05:59]} 23. Ne1 {[%emt 0:02:17] Against Nd3+} Rb7 {[%emt 0:08:53]} 24. Ra5 {[%emt 0:03:06]} Re8 {[%emt 0:12:30]} (24... a6 $17 {White must now prevent ...Rb5.} 25. a3 Nc6) 25. a3 $1 $15 {[%emt 0:01:10]} Nc6 {[%emt 0:02:07]} 26. Rc5 {[%emt 0:01:45]} (26. Rd5 $15) 26... Rb3 {[%emt 0:01:08]} (26... Reb8 $17 27. Nc2 Rxb2 28. Rxc4 Rb1+ 29. Kd2 Rh1) 27. Rxc4 {[%emt 0:01:55]} (27. Rxb3 $11 {keeps the balance.} cxb3 28. Nd3) 27... Rxe3 $17 {[%emt 0:00:15]} ({Don't play} 27... Nxe5 $6 28. Rxc7 Rxe3 29. fxe3 $11) 28. fxe3 {[%emt 0:00:09]} Rxe5 $11 {[%emt 0:00:08][%mdl 4096] Endgame KRN-KRN} 29. Kd2 {[%emt 0:00:52]} f5 {[%emt 0:03:01]} 30. Nd3 {[%emt 0:01:39]} Rd5 {[%emt 0:00:18]} 31. Kc2 {[%emt 0:15:15]} a5 {[%emt 0:01:40]} (31... g5 $17) 32. Rc3 {[%emt 0:02:50]} (32. Rc5 $1 $15 Rxc5+ 33. Nxc5) 32... Kf6 $17 {[%emt 0:03:44]} 33. h3 {[%emt 0:04:36]} Ke7 {[%emt 0:02:10]} 34. Nf4 {[%emt 0:02:05]} Rb5 {[%emt 0:00:22]} 35. b3 {[%emt 0:01:10]} Kd8 {[%emt 0:01:10]} 36. Ne6+ {[%emt 0:01:49]} dxe6 {[%emt 0:00:49]} 37. Rxc6 {[%emt 0:00:05] KR-KR} Kd7 {[%emt 0:00:23]} 38. Ra6 {[%emt 0:00:08]} Rc5+ {[%emt 0:03:11]} 39. Kd2 {[%emt 0:00:22]} Rd5+ {[%emt 0:03:46]} 40. Kc2 {[%emt 0:00:07]} g5 {[%emt 0:01:06]} 41. Ra8 {[%emt 0:00:44]} Re5 {[%emt 0:01:06]} ({Better is} 41... Kd6 $17 42. Rg8 Ke5 43. Rxg5 Ke4) 42. Kd2 {[%emt 0:00:31]} h6 {[%emt 0:02:36]} ({Black should try} 42... Rb5 $15 43. Kc2 Re5) 43. Rh8 $1 $11 {[%emt 0:03:08] The position is equal.} Rb5 {[%emt 0:00:26]} 44. Kc2 {[%emt 0:00:31]} Re5 {[%emt 0:00:13]} 45. Kd2 {[%emt 0:00:04]} Rb5 {[%emt 0:00:08] And White is the lucky defender.  Weighted Error Value: White=0.21 (precise) /Black=0.17 (very precise)} 1/2-1/2

[Event "12th WLC Weekend 2022"]
[Site "Eindhoven"]
[Date "2022.05.15"]
[Round "6.12"]
[White "Zepeda, Lorena"]
[Black "Suranyi, Pal"]
[Result "0-1"]
[ECO "B06"]
[WhiteElo "2130"]
[BlackElo "2013"]
[Annotator "TA"]
[PlyCount "106"]
[EventDate "2022.05.13"]
[EventType "swiss"]
[EventCountry "NED"]
[SourceTitle "playchess.com"]
[Source "ChessBase"]
[SourceQuality "1"]
[TimeControl "5400+30"]

{[%evp 11,106,52,70,24,34,42,66,55,60,52,59,41,48,38,46,33,107,110,116,117,127,125,129,134,134,101,95,0,0,-35,57,77,81,65,73,76,106,0,35,24,26,25,53,47,47,-22,-12,-72,-27,-57,-29,-51,80,37,54,57,35,1,15,16,12,22,20,0,70,-95,0,0,0,-37,-33,-27,-38,-45,-46,-161,-162,-209,-201,-260,-83,-277,-273,-488,-504,-421,-258,-1818,-1669,-29985,-29986,-29986,-29987,-29992,-29991,-29993,-29987]} 1. e4 {[%emt 0:00:03]} g6 {[%emt 0:03:54]} 2. d4 {[%emt 0:00:19]} Bg7 {[%emt 0:00:07]} 3. Nc3 {[%emt 0:00:44]} d6 {[%emt 0:00:05]} 4. Bg5 {[%emt 0:04:42]} c5 {[%emt 0:05:58]} 5. dxc5 {[%emt 0:04:22]} Qa5 {[%emt 0:01:01]} 6. Qd2 {[%emt 0:03:24]} Qxc5 {[%emt 0:01:25]} 7. Be3 {[%emt 0:04:40] B06: Modern Defence.} (7. Nd5 $14 Be6 8. c4) 7... Qb4 {[%emt 0:08:40]} 8. Nge2 {[%emt 0:14:59][%cal Bg1e2,Be2c1,Bc1b3][%mdl 32]} Nf6 {[%emt 0:16:46] [#]} 9. f3 $146 {[%emt 0:05:19] White is slightly better.} ({Predecessor:} 9. a3 Qa5 10. O-O-O Nc6 11. Bh6 Bxh6 12. Qxh6 Ng4 13. Qh4 Qc5 14. Nd5 Qxf2 15. Ng3 {½-½ (68) Agopov,M (2448)-Kukk,S (2139) Tallinn 2012}) 9... Nc6 {[%emt 0:08:27]} 10. O-O-O {[%emt 0:04:18]} Bd7 {[%emt 0:15:44]} 11. h4 {[%emt 0:04:42]} h5 {[%emt 0:00:38] Inhibits g4.} 12. Kb1 {[%emt 0:09:21]} Rc8 {[%emt 0:00:52]} 13. Nc1 {[%emt 0:01:47]} Ne5 {[%emt 0:04:16]} (13... Nh7 $14) 14. Nb3 $1 $16 {[%emt 0:02:02] Strongly threatening a3.} (14. Bxa7 Nxf3 $1 15. Qf4 (15. gxf3 Nxe4 16. fxe4 Bxc3 $17) 15... Rxc3 $17) 14... Nc4 {[%emt 0:06:57]} 15. Bxc4 {[%emt 0:01:30]} Qxc4 {[%emt 0:00:06]} 16. Bxa7 {[%emt 0:01:41]} b5 {[%emt 0:02:10]} 17. Bd4 {[%emt 0:06:44]} e5 {[%emt 0:04:31]} 18. Be3 {[%emt 0:01:57]} b4 {[%emt 0:00:23]} 19. Ne2 {[%emt 0:02:40]} ({Reject} 19. Qxd6 bxc3 20. Qxe5+ (20. Bc5 $2 Qe6 $19) 20... Kf8 21. Qxc3 Qxc3 22. bxc3 Be6 $15) (19. Nd5 $1 $16 {[%cal Rd5b6]} Nxd5 20. Qxd5) 19... d5 $11 {[%emt 0:01:55]} 20. Bg5 {[%emt 0:11:16]} d4 {[%emt 0:02:09] Against c3} (20... O-O $1 $15) 21. Nec1 $14 {[%emt 0:03:37]} Be6 {[%emt 0:00:37]} 22. Bxf6 {[%emt 0:04:31]} Bxf6 {[%emt 0:00:04]} 23. Nd3 {[%emt 0:00:14]} O-O {[%emt 0:07:50]} 24. Nxb4 {[%emt 0:02:41] Pair of Knights!} (24. g4 $1 $16 {[%cal Rg4h5]}) 24... Ra8 {[%emt 0:01:01]} (24... Be7 $5 {[%cal Re7b4]} 25. Nd5 Bxd5 26. exd5 Ra8 $11) 25. Nd5 {[%emt 0:00:55] Prevents Be7.} Bxd5 {[%emt 0:01:19]} 26. exd5 {[%emt 0:00:05]} Qxd5 {[%emt 0:02:42]} 27. Qd3 {[%emt 0:00:57]} Bg7 {[%emt 0:01:02]} 28. c4 {[%emt 0:03:17]} ({White should try} 28. Qe4 $14 Qxe4 29. fxe4) 28... Qc6 {[%emt 0:00:53][%mdl 1024] Black has compensation.} 29. Rc1 {[%emt 0:01:22]} (29. Rhe1 $11) 29... f5 {[%emt 0:01:18]} (29... Rfb8 $5 {[%cal Rc6a4]} 30. a3 Bf8 $17) 30. c5 {[%emt 0:00:24][%cal Bc4c5,Bc5c6][%mdl 32]} Rfd8 {[%emt 0:00:54] And now ...e4 would win.} 31. Rhe1 {[%emt 0:00:34] Inhibits e4.} Qd5 {[%emt 0:00:45]} (31... Kh8 $15 {keeps the upper hand.}) 32. Qc4 {[%emt 0:00:21]} Kf7 {[%emt 0:00:46]} 33. Qxd5+ {[%emt 0:00:21]} Rxd5 {[%emt 0:00:03]} 34. c6 {[%emt 0:00:33]} Rc8 {[%emt 0:00:18]} 35. Rc4 {[%emt 0:00:54]} Bh6 {[%emt 0:00:44]} 36. a3 {[%emt 0:00:38]} Be3 {[%emt 0:00:11]} 37. Na1 {[%emt 0:00:24]} (37. Nc1 {seems wilder.} Ke6 38. Nd3 Kd6 39. Kc2) 37... Bf2 {[%emt 0:00:36]} (37... Rd6 $11) 38. Rd1 $2 {[%emt 0:00:16] [#]} (38. Rf1 $1 $14 {stays ahead.} Bxh4 39. b4) 38... e4 {[%emt 0:00:30]} (38... Rd6 $1 $17 39. c7 Rd7) 39. fxe4 $11 {[%emt 0:00:14]} fxe4 {[%emt 0:00:03]} 40. Nc2 {[%emt 0:00:25][%cal Rc2d4]} d3 $36 {[%emt 0:00:20][%mdl 2048] Black has good play.} 41. Nb4 {[%emt 0:00:28]} Rd4 {[%emt 0:01:01]} 42. Rxd4 {[%emt 0:00:58]} Bxd4 $15 {[%emt 0:00:04][%mdl 4096] Endgame KRB-KRN} 43. Rf1+ {[%emt 0:00:23]} (43. Re1 $1 $15 d2 44. Rf1+ Kg7 45. Kc2) 43... Ke6 $19 {[%emt 0:00:27]} 44. Re1 {[%emt 0:00:37]} (44. g4 $142) 44... Kf5 {[%emt 0:00:37] aiming for ...Bc5.} 45. Rf1+ {[%emt 0:00:17]} Kg4 $2 {[%emt 0:00:31]} (45... Ke5 $19 {and Black stays clearly on top. Hoping for ...Bc5.} 46. Rd1 Bc5 47. Nxd3+ exd3 48. Rxd3 Rxc6) 46. Re1 $2 {[%emt 0:00:16] [#] This costs White the game.} (46. Kc1 $17) 46... Kf4 $1 {[%emt 0:01:31]} 47. Rf1+ {[%emt 0:00:29]} (47. Rd1) 47... Kg3 {[%emt 0:00:23] Threatens to win with ...Bf2.} 48. Rf7 {[%emt 0:01:02]} Bc5 {[%emt 0:00:58]} 49. Rg7 $2 {[%emt 0:00:36]} (49. c7 Kxg2 50. Nd5) 49... Bxb4 {[%emt 0:00:23]} 50. Rxg6+ {[%emt 0:00:14]} Kf2 {[%emt 0:00:05] Black mates.} 51. axb4 {[%emt 0:00:23]} e3 {[%emt 0:00:12]} 52. Kc1 {[%emt 0:00:39]} d2+ {[%emt 0:00:35]} 53. Kc2 {[%emt 0:00:22]} d1=Q+ {[%emt 0:00:13][%mdl 64] Promotion.  Weighted Error Value: White=0.55/Black=0.26 (precise)} 0-1